fUST/lending_fUST_20260430
["ID","MTS","AMOUNT","RATE_DAILY","PERIOD"]
[421357118,1777491043000,-1143.840605,0.00016438,2]
[421357088,1777491043000,-362.870856,0.00016438,2]
[421357094,1777491043000,-362.870856,0.00016438,2]
[421357086,1777491043000,-362.870856,0.00016438,2]
[421357096,1777491043000,-1143.840613,0.00016438,2]
[421357095,1777491043000,-362.870846,0.00016438,2]
[421357087,1777491043000,-210.160055,0.00016438,2]
[421357089,1777491043000,-210.160055,0.00016438,2]
[421357092,1777491043000,-362.870856,0.00016438,2]
[421357093,1777491043000,-362.870856,0.00016438,2]
[421357090,1777491043000,-362.870856,0.00016438,2]
[421357091,1777491043000,-210.160059,0.00016438,2]
[421357097,1777491043000,-1143.840613,0.00016438,2]
[421357099,1777491043000,-1143.840613,0.00016438,2]
[421357108,1777491043000,-1143.840613,0.00016438,2]
[421357109,1777491043000,-1143.840613,0.00016438,2]
[421357101,1777491043000,-151.0,0.00016438,2]
[421357104,1777491043000,-298.506,0.00016438,2]
[421357102,1777491043000,-151.0,0.00016438,2]
[421357103,1777491043000,-1143.840613,0.00016438,2]
[421357105,1777491043000,-1143.840613,0.00016438,2]
[421357100,1777491043000,-1143.840613,0.00016438,2]
[421357107,1777491043000,-1143.840613,0.00016438,2]
[421357106,1777491043000,-1143.840613,0.00016438,2]
[421357111,1777491043000,-1143.840613,0.00016438,2]
[421357137,1777491043000,-218.460298,0.00016438,2]
[421357098,1777491043000,-1143.840613,0.00016438,2]
[421357138,1777491043000,-151.0,0.00016438,2]
[421357166,1777491043000,-265.305485,0.00016438,2]
[421357169,1777491043000,-245.368255,0.00016438,2]
[421357170,1777491043000,-265.305485,0.00016438,2]
[421357172,1777491043000,-265.305485,0.00016438,2]
[421357171,1777491043000,-245.368255,0.00016438,2]
[421357168,1777491043000,-265.305485,0.00016438,2]
[421357177,1777491043000,-245.368255,0.00016438,2]
[421357174,1777491043000,-265.305485,0.00016438,2]
[421357173,1777491043000,-245.368255,0.00016438,2]
[421357176,1777491043000,-265.305485,0.00016438,2]
[421357175,1777491043000,-245.368255,0.00016438,2]
[421357179,1777491043000,-245.368255,0.00016438,2]
[421357180,1777491043000,-265.305485,0.00016438,2]
[421357188,1777491043000,-265.305485,0.00016438,2]
[421357178,1777491043000,-265.305485,0.00016438,2]
[421357181,1777491043000,-245.368255,0.00016438,2]
[421357186,1777491043000,-245.368257,0.00016438,2]
[421357184,1777491043000,-245.368255,0.00016438,2]
[421357185,1777491043000,-265.305485,0.00016438,2]
[421357187,1777491043000,-265.305485,0.00016438,2]
[421357182,1777491043000,-245.368255,0.00016438,2]
[421357189,1777491043000,-265.305485,0.00016438,2]
[421357135,1777491043000,-218.460298,0.00016438,2]
[421357167,1777491043000,-245.368255,0.00016438,2]
[421357162,1777491043000,-245.368255,0.00016438,2]
[421357183,1777491043000,-265.305485,0.00016438,2]
[421357163,1777491043000,-245.368255,0.00016438,2]
[421357165,1777491043000,-245.368255,0.00016438,2]
[421357139,1777491043000,-218.460298,0.00016438,2]
[421357141,1777491043000,-218.460298,0.00016438,2]
[421357142,1777491043000,-218.460298,0.00016438,2]
[421357145,1777491043000,-218.460298,0.00016438,2]
[421357144,1777491043000,-218.460298,0.00016438,2]
[421357146,1777491043000,-218.460298,0.00016438,2]
[421357149,1777491043000,-218.460298,0.00016438,2]
[421357156,1777491043000,-151.0,0.00016438,2]
[421357155,1777491043000,-218.460308,0.00016438,2]
[421357151,1777491043000,-218.460298,0.00016438,2]
[421357143,1777491043000,-218.460298,0.00016438,2]
[421357154,1777491043000,-218.460298,0.00016438,2]
[421357150,1777491043000,-218.460298,0.00016438,2]
[421357164,1777491043000,-245.368255,0.00016438,2]
[421357159,1777491043000,-245.368255,0.00016438,2]
[421357157,1777491043000,-245.368255,0.00016438,2]
[421357160,1777491043000,-245.368255,0.00016438,2]
[421357147,1777491043000,-218.460298,0.00016438,2]
[421357152,1777491043000,-218.460298,0.00016438,2]
[421357153,1777491043000,-218.460298,0.00016438,2]
[421357148,1777491043000,-218.460298,0.00016438,2]
[421357158,1777491043000,-245.368255,0.00016438,2]
[421357161,1777491043000,-245.368255,0.00016438,2]
[421357220,1777491044000,-238.91968,0.00016438,2]
[421357218,1777491044000,-151.0,0.00016438,2]
[421357215,1777491044000,-151.0,0.00016438,2]
[421357219,1777491044000,-151.0,0.00016438,2]
[421357211,1777491044000,-151.0,0.00016438,2]
[421357213,1777491044000,-151.0,0.00016438,2]
[421357214,1777491044000,-151.0,0.00016438,2]
[421357216,1777491044000,-151.0,0.00016438,2]
[421357226,1777491044000,-387.282773,0.00016438,2]
[421357223,1777491044000,-387.282773,0.00016438,2]
[421357221,1777491044000,-387.282773,0.00016438,2]
[421357228,1777491044000,-387.282773,0.00016438,2]
[421357225,1777491044000,-428.592551,0.00016438,2]
[421357227,1777491044000,-428.592551,0.00016438,2]
[421357224,1777491044000,-387.282773,0.00016438,2]
[421357212,1777491044000,-151.0,0.00016438,2]
[421357229,1777491044000,-428.592551,0.00016438,2]
[421357217,1777491044000,-151.0,0.00016438,2]
[421357206,1777491044000,-151.0,0.00016438,2]
[421357195,1777491044000,-265.305485,0.00016438,2]
[421357209,1777491044000,-151.0,0.00016438,2]
[421357230,1777491044000,-387.282773,0.00016438,2]
[421357199,1777491044000,-151.0,0.00016438,2]
[421357191,1777491044000,-265.305485,0.00016438,2]
[421357190,1777491044000,-265.305485,0.00016438,2]
[421357193,1777491044000,-265.305485,0.00016438,2]
[421357194,1777491044000,-265.305485,0.00016438,2]
[421357197,1777491044000,-151.0,0.00016438,2]
[421357196,1777491044000,-265.305489,0.00016438,2]
[421357207,1777491044000,-151.0,0.00016438,2]
[421357192,1777491044000,-265.305485,0.00016438,2]
[421357201,1777491044000,-151.0,0.00016438,2]
[421357200,1777491044000,-185.70109,0.00016438,2]
[421357203,1777491044000,-151.0,0.00016438,2]
[421357204,1777491044000,-151.0,0.00016438,2]
[421357202,1777491044000,-151.0,0.00016438,2]
[421357205,1777491044000,-151.0,0.00016438,2]
[421357208,1777491044000,-151.0,0.00016438,2]
[421357210,1777491044000,-286.35805,0.00016438,2]
[421357198,1777491044000,-151.0,0.00016438,2]
[421357231,1777491044000,-428.592551,0.00016438,2]
[421357222,1777491044000,-387.282773,0.00016438,2]
[421357232,1777491044000,-387.282773,0.00016438,2]
[421357259,1777491044000,-428.592551,0.00016438,2]
[421357261,1777491044000,-151.0,0.00016438,2]
[421357260,1777491044000,-428.592558,0.00016438,2]
[421357256,1777491044000,-387.282779,0.00016438,2]
[421357258,1777491044000,-428.592551,0.00016438,2]
[421357253,1777491044000,-428.592551,0.00016438,2]
[421357263,1777491044000,-151.0,0.00016438,2]
[421357273,1777491044000,-151.0,0.00016438,2]
[421357257,1777491044000,-428.592551,0.00016438,2]
[421357262,1777491044000,-151.0,0.00016438,2]
[421357271,1777491044000,-257.864416,0.00016438,2]
[421357270,1777491044000,-151.0,0.00016438,2]
[421357267,1777491044000,-151.0,0.00016438,2]
[421357269,1777491044000,-151.0,0.00016438,2]
[421357272,1777491044000,-151.0,0.00016438,2]
[421357268,1777491044000,-151.0,0.00016438,2]
[421357234,1777491044000,-387.282773,0.00016438,2]
[421357266,1777491044000,-151.0,0.00016438,2]
[421357264,1777491044000,-151.0,0.00016438,2]
[421357254,1777491044000,-387.282773,0.00016438,2]
[421357265,1777491044000,-151.0,0.00016438,2]
[421357252,1777491044000,-387.282773,0.00016438,2]
[421357235,1777491044000,-428.592551,0.00016438,2]
[421357233,1777491044000,-428.592551,0.00016438,2]
[421357255,1777491044000,-428.592551,0.00016438,2]
[421357239,1777491044000,-428.592551,0.00016438,2]
[421357236,1777491044000,-387.282773,0.00016438,2]
[421357238,1777491044000,-387.282773,0.00016438,2]
[421357240,1777491044000,-387.282773,0.00016438,2]
[421357242,1777491044000,-387.282773,0.00016438,2]
[421357241,1777491044000,-428.592551,0.00016438,2]
[421357237,1777491044000,-428.592551,0.00016438,2]
[421357245,1777491044000,-428.592551,0.00016438,2]
[421357246,1777491044000,-387.282773,0.00016438,2]
[421357244,1777491044000,-387.282773,0.00016438,2]
[421357243,1777491044000,-428.592551,0.00016438,2]
[421357251,1777491044000,-428.592551,0.00016438,2]
[421357247,1777491044000,-428.592551,0.00016438,2]
[421357250,1777491044000,-387.282773,0.00016438,2]
[421357248,1777491044000,-387.282773,0.00016438,2]
[421357249,1777491044000,-428.592551,0.00016438,2]
[421357319,1777491045000,-206.02229003,0.000182,2]
[421357318,1777491045000,-155.0,0.00018081,2]
[421357312,1777491045000,-207.34,0.0001788,2]
[421357323,1777491045000,-395.94566339,0.00018334,2]
[421357302,1777491045000,-224.26569028,0.00016473,2]
[421357307,1777491045000,-456.0084076,0.0001688,2]
[421357301,1777491045000,-362.800184,0.00016438,2]
[421357303,1777491045000,-10013.64581891,0.000166,2]
[421357306,1777491045000,-791.0,0.00016776,2]
[421357314,1777491045000,-206.02229003,0.00018,2]
[421357304,1777491045000,-10013.64581891,0.000167,2]
[421357313,1777491045000,-18528.5981074,0.00018,2]
[421357316,1777491045000,-352.51025138,0.00018,2]
[421357331,1777491045000,-2030.296672,0.00018488,2]
[421357317,1777491045000,-3461.6949108,0.00018029,2]
[421357320,1777491045000,-176.25512569,0.000182,2]
[421357321,1777491045000,-352.51025138,0.000182,2]
[421357322,1777491045000,-151.0,0.000182,2]
[421357325,1777491045000,-176.25512569,0.000184,2]
[421357324,1777491045000,-206.02229003,0.000184,2]
[421357335,1777491045000,-352.51025138,0.000185,2]
[421357332,1777491045000,-216.599564,0.00018493,2]
[421357328,1777491045000,-2150.738,0.00018433,2]
[421357327,1777491045000,-1957.856,0.00018433,2]
[421357336,1777491045000,-212.483152,0.00018522,7]
[421357334,1777491045000,-176.25512569,0.000185,2]
[421357329,1777491045000,-1000.0,0.00018454,2]
[421357305,1777491045000,-1000.0,0.00016776,2]
[421357315,1777491045000,-176.25512569,0.00018,2]
[421357299,1777491045000,-362.800184,0.00016438,2]
[421357283,1777491045000,-453.512649,0.00016438,2]
[421357310,1777491045000,-156.0,0.0001739,2]
[421357326,1777491045000,-352.51025138,0.000184,2]
[421357274,1777491045000,-151.0,0.00016438,2]
[421357276,1777491045000,-200.177133,0.00016438,2]
[421357279,1777491045000,-453.512649,0.00016438,2]
[421357277,1777491045000,-453.512649,0.00016438,2]
[421357278,1777491045000,-453.512649,0.00016438,2]
[421357284,1777491045000,-453.512649,0.00016438,2]
[421357285,1777491045000,-362.800184,0.00016438,2]
[421357286,1777491045000,-453.512649,0.00016438,2]
[421357275,1777491045000,-151.0,0.00016438,2]
[421357280,1777491045000,-453.512649,0.00016438,2]
[421357282,1777491045000,-453.512649,0.00016438,2]
[421357281,1777491045000,-453.512649,0.00016438,2]
[421357311,1777491045000,-467.462935,0.0001764,7]
[421357287,1777491045000,-362.800184,0.00016438,2]
[421357289,1777491045000,-362.800184,0.00016438,2]
[421357288,1777491045000,-453.512649,0.00016438,2]
[421357293,1777491045000,-362.800184,0.00016438,2]
[421357290,1777491045000,-453.512649,0.00016438,2]
[421357296,1777491045000,-453.512649,0.00016438,2]
[421357291,1777491045000,-362.800184,0.00016438,2]
[421357298,1777491045000,-453.512649,0.00016438,2]
[421357295,1777491045000,-362.800184,0.00016438,2]
[421357294,1777491045000,-453.512649,0.00016438,2]
[421357292,1777491045000,-453.512649,0.00016438,2]
[421357300,1777491045000,-453.512649,0.00016438,2]
[421357308,1777491045000,-192.84,0.00017202,2]
[421357309,1777491045000,-151.0,0.000173,2]
[421357297,1777491045000,-362.800184,0.00016438,2]
[421357333,1777491045000,-206.02229003,0.000185,2]
[421357377,1777491045000,-151.0,0.00019205,5]
[421357338,1777491045000,-206.02229003,0.000187,2]
[421357368,1777491045000,-162.380719,0.00019205,5]
[421357369,1777491045000,-461.67526834,0.00019205,5]
[421357373,1777491045000,-578.20924308,0.00019205,5]
[421357371,1777491045000,-537.6845,0.00019205,5]
[421357375,1777491045000,-174.61919141,0.00019205,5]
[421357374,1777491045000,-478.75725327,0.00019205,5]
[421357378,1777491045000,-599.60298507,0.00019205,5]
[421357385,1777491045000,-693.3919763,0.00019205,5]
[421357379,1777491045000,-445.202766,0.00019205,5]
[421357376,1777491045000,-557.5788265,0.00019205,5]
[421357382,1777491045000,-621.78829552,0.00019205,5]
[421357386,1777491045000,-719.04747942,0.00019205,5]
[421357380,1777491045000,-162.380719,0.00019205,5]
[421357364,1777491045000,-162.380719,0.00019205,5]
[421357383,1777491045000,-644.79446246,0.00019205,5]
[421357381,1777491045000,-517.7901735,0.00019205,5]
[421357387,1777491045000,-269.55932696,0.00019205,5]
[421357390,1777491045000,-11128.42039247,0.00019336,2]
[421357389,1777491045000,-5000.0,0.00019272,2]
[421357388,1777491045000,-151.0,0.00019205,5]
[421357396,1777491045000,-168.87649341,0.00019404,7]
[421357395,1777491045000,-538.45489944,0.00019403,2]
[421357394,1777491045000,-292.75039468,0.00019402,2]
[421357330,1777491045000,-1000.0,0.00018454,2]
[421357392,1777491045000,-10000.0,0.000194,30]
[421357397,1777491045000,-500.0,0.00019404,2]
[421357393,1777491045000,-160.0,0.000194,30]
[421357399,1777491045000,-500.0,0.00019404,2]
[421357384,1777491045000,-668.65185757,0.00019205,5]
[421357363,1777491045000,-445.202766,0.00019205,5]
[421357391,1777491045000,-12681.95032526,0.00019368,2]
[421357366,1777491045000,-151.0,0.00019205,5]
[421357370,1777491045000,-168.3888056,0.00019205,5]
[421357337,1777491045000,-1617.13065585,0.00018543,2]
[421357348,1777491045000,-1030.0,0.00019,3]
[421357342,1777491045000,-822.0,0.0001872,2]
[421357344,1777491045000,-15000.0,0.000189,23]
[421357339,1777491045000,-176.25512569,0.000187,2]
[421357345,1777491045000,-2230.315306,0.00018981,2]
[421357340,1777491045000,-352.51025138,0.000187,2]
[421357343,1777491045000,-822.0,0.0001872,2]
[421357346,1777491045000,-16241.7679414,0.00018998,2]
[421357341,1777491045000,-821.0,0.0001872,2]
[421357347,1777491045000,-2069.10268675,0.00019,2]
[421357349,1777491045000,-20000.0,0.00019,15]
[421357351,1777491045000,-5762.78542544,0.00019016,2]
[421357350,1777491045000,-335.34260887,0.00019,60]
[421357355,1777491045000,-11128.42039247,0.00019113,2]
[421357365,1777491045000,-162.380719,0.00019205,5]
[421357372,1777491045000,-151.0,0.00019205,5]
[421357367,1777491045000,-557.5788265,0.00019205,5]
[421357362,1777491045000,-537.6845,0.00019205,5]
[421357359,1777491045000,-313.0,0.00019178,3]
[421357358,1777491045000,-300.0,0.00019178,2]
[421357354,1777491045000,-151.0,0.000191,2]
[421357356,1777491045000,-300.0,0.00019178,2]
[421357360,1777491045000,-168.87649341,0.00019185,7]
[421357357,1777491045000,-300.0,0.00019178,2]
[421357353,1777491045000,-822.0,0.0001904,2]
[421357352,1777491045000,-822.0,0.0001904,2]
[421357361,1777491045000,-151.0,0.00019205,5]
[421357405,1777491046000,-152.0,8.939e-05,7]
[421357401,1777491046000,-65965.21088428,0.00019404,2]
[421357403,1777491046000,-152.0,8.939e-05,7]
[421357402,1777491046000,-152.0,8.939e-05,7]
[421357407,1777491046000,-615.0,0.00013698,2]
[421357400,1777491046000,-550525.07358171,0.00019404,2]
[421357406,1777491046000,-646.0,0.00012934,2]
[421357411,1777491046000,-25276.08429351,0.0001611,2]
[421357409,1777491046000,-160.0,0.0001611,2]
[421357408,1777491046000,-646.0,0.00015934,2]
[421357410,1777491046000,-15942.415075,0.0001611,2]
[421357404,1777491046000,-152.0,8.939e-05,7]
[421357413,1777491047000,-453.512649,0.00016438,2]
[421357412,1777491047000,-6448.74585649,0.0001611,2]
[421357414,1777491047000,-362.800184,0.00016438,2]
[421357416,1777491047000,-362.800184,0.00016438,2]
[421357419,1777491047000,-287.1508371,0.00016438,2]
[421357417,1777491047000,-453.512649,0.00016438,2]
[421357415,1777491047000,-453.512649,0.00016438,2]
[421357418,1777491047000,-362.800184,0.00016438,2]
[421357480,1777491049000,-362.800184,0.00016438,2]
[421357477,1777491049000,-362.800184,0.00016438,2]
[421357478,1777491049000,-362.800184,0.00016438,2]
[421357491,1777491049000,-261.98900556,0.00016438,2]
[421357475,1777491049000,-166.3618089,0.00016438,2]
[421357485,1777491049000,-362.800184,0.00016438,2]
[421357484,1777491049000,-362.800184,0.00016438,2]
[421357488,1777491049000,-362.800184,0.00016438,2]
[421357489,1777491049000,-454.449014,0.00016438,2]
[421357482,1777491049000,-362.800184,0.00016438,2]
[421357649,1777491075000,-1304.0,8.87e-05,2]
[421357736,1777492232000,-500.0,8.669e-05,2]
[421357730,1777492232000,-500.0,8.669e-05,2]
[421357740,1777492232000,-500.0,8.669e-05,2]
[421357738,1777492232000,-500.0,8.669e-05,2]
[421357728,1777492232000,-500.0,8.669e-05,2]
[421357725,1777492232000,-500.0,8.669e-05,2]
[421357723,1777492232000,-500.0,8.669e-05,2]
[421357715,1777492232000,-500.0,8.669e-05,2]
[421357719,1777492232000,-391.15724716,8.669e-05,2]
[421357741,1777492232000,-500.0,8.669e-05,2]
[421357712,1777492232000,-304.26211127,8.669e-05,2]
[421357714,1777492232000,-500.0,8.669e-05,2]
[421357708,1777492232000,-6.86941339,8.669e-05,2]
[421357701,1777492232000,-466.35344272,8.669e-05,2]
[421357705,1777492232000,-493.13058661,8.669e-05,2]
[421357703,1777492232000,-500.0,8.669e-05,2]
[421357698,1777492232000,-316.37142002,8.669e-05,2]
[421357699,1777492232000,-500.0,8.669e-05,2]
[421357696,1777492232000,-542.0,8.669e-05,2]
[421357717,1777492232000,-500.0,8.669e-05,2]
[421357726,1777492232000,-500.0,8.669e-05,2]
[421357710,1777492232000,-500.0,8.669e-05,2]
[421357743,1777492232000,-462.29812949,8.669e-05,2]
[421357733,1777492232000,-500.0,8.669e-05,2]
[421357770,1777492232000,-300.0,8.669e-05,2]
[421357772,1777492232000,-77767.47932091,8.67e-05,2]
[421357773,1777492232000,-637.92171028,8.67e-05,2]
[421357768,1777492232000,-500.0,8.669e-05,2]
[421357752,1777492232000,-500.0,8.669e-05,2]
[421357751,1777492232000,-500.0,8.669e-05,2]
[421357761,1777492232000,-212.23362599,8.669e-05,2]
[421357766,1777492232000,-500.0,8.669e-05,2]
[421357750,1777492232000,-500.0,8.669e-05,2]
[421357765,1777492232000,-500.0,8.669e-05,2]
[421357721,1777492232000,-500.0,8.669e-05,2]
[421357759,1777492232000,-500.0,8.669e-05,2]
[421357763,1777492232000,-500.0,8.669e-05,2]
[421357754,1777492232000,-500.0,8.669e-05,2]
[421357748,1777492232000,-500.0,8.669e-05,2]
[421357746,1777492232000,-500.0,8.669e-05,2]
[421357756,1777492232000,-500.0,8.669e-05,2]
[421357757,1777492232000,-500.0,8.669e-05,2]
[421357745,1777492232000,-500.0,8.669e-05,2]
[421357734,1777492232000,-500.0,8.669e-05,2]
[421357732,1777492232000,-500.0,8.669e-05,2]
[421357969,1777492243000,-15674.1178605,8.67e-05,2]
[421357968,1777492243000,-4072.36987339,8.67e-05,2]
[421357967,1777492243000,-1812.54282481,8.67e-05,2]
[421357979,1777492264000,152.0,8.695e-05,30]
[421357980,1777492265000,152.0,8.775e-05,30]
[421358038,1777493433000,-300.0,9.046e-05,2]
[421358037,1777493433000,-300.0,8.843e-05,2]
[421358036,1777493433000,-152.0,8.704e-05,7]
[421358035,1777493433000,-152.0,8.693e-05,7]
[421358034,1777493433000,-193.1021349,8.683e-05,2]
[421358031,1777493433000,-185.75216735,8.441e-05,2]
[421358032,1777493433000,-152.0,8.682e-05,7]
[421358030,1777493433000,-341.986,8.399e-05,2]
[421358039,1777493433000,-605.0,9.046e-05,2]
[421358033,1777493433000,-1648.7199413,8.683e-05,2]
[421358040,1777493434000,-600.0,9.047e-05,2]
[421358044,1777493434000,-219.18755747,0.00010441,2]
[421358041,1777493434000,-7801.18893226,9.047e-05,2]
[421358045,1777493434000,-864.0,0.00010946,2]
[421358046,1777493434000,-864.06326672,0.00012041,2]
[421358043,1777493434000,-720.0,9.951e-05,2]
[421358055,1777493438000,-160.0,0.00012547,2]
[421358050,1777493438000,-135.93673328,0.00012041,2]
[421358052,1777493438000,-252.62294759,0.00012441,2]
[421358059,1777493438000,-646.0,0.00013505,2]
[421358051,1777493438000,-590.0,0.00012041,2]
[421358061,1777493438000,-500.0,0.00013698,2]
[421358062,1777493438000,-500.0,0.00013698,2]
[421358058,1777493438000,-244.0,0.00013245,2]
[421358054,1777493438000,-160.0,0.00012547,2]
[421358056,1777493438000,-500.0,0.00012748,2]
[421358064,1777493438000,-500.0,0.00013698,2]
[421358057,1777493438000,-1000.0,0.00013245,2]
[421358065,1777493438000,-243.49,0.00013698,2]
[421358067,1777493438000,-875.2870017,0.00013699,2]
[421358066,1777493438000,-213.749435,0.00013699,2]
[421358053,1777493438000,-193.1021349,0.00012446,2]
[421358128,1777493448000,-500.0,0.00014999,2]
[421358123,1777493448000,-208.71,0.00014794,2]
[421358126,1777493448000,-500.0,0.00014999,2]
[421358131,1777493448000,-162.449673,0.00015068,2]
[421358127,1777493448000,-500.0,0.00014999,2]
[421358132,1777493448000,-325.70854865,0.00015099,2]
[421358133,1777493448000,-17536.56587199,0.000151,2]
[421358122,1777493448000,-382.89491402,0.0001457,2]
[421358125,1777493448000,-381.798515,0.00014999,2]
[421358121,1777493448000,-109.10508598,0.0001457,2]
[421358129,1777493448000,-545.65109077,0.00014999,2]
[421358120,1777493448000,-1000.0,0.0001457,2]
[421358118,1777493448000,-1000.0,0.00013699,2]
[421358130,1777493448000,-10119.94829232,0.00015,2]
[421358119,1777493448000,-286.05833771,0.00014441,2]
[421358115,1777493448000,-740.0,0.00013505,2]
[421358117,1777493448000,-124.7129983,0.00013699,2]
[421358116,1777493448000,-185.0,0.00013505,2]
[421358134,1777493448000,-58207.01152582,0.000151,2]
[421358124,1777493448000,-3475.42548565,0.00014968,2]
[421358136,1777493448000,-500.0,0.00015199,2]
[421358152,1777493448000,-500.0,0.00015199,2]
[421358135,1777493448000,-309996.26346381,0.000151,2]
[421358171,1777493448000,-31321.84848189,0.000152,2]
[421358137,1777493448000,-221.45999402,0.00015199,2]
[421358164,1777493448000,-650.0,0.00015199,2]
[421358162,1777493448000,-500.0,0.00015199,2]
[421358166,1777493448000,-10119.94829232,0.000152,2]
[421358160,1777493448000,-500.0,0.00015199,2]
[421358156,1777493448000,-500.0,0.00015199,2]
[421358154,1777493448000,-500.0,0.00015199,2]
[421358148,1777493448000,-500.0,0.00015199,2]
[421358168,1777493448000,-55893.63558564,0.000152,2]
[421358146,1777493448000,-500.0,0.00015199,2]
[421358150,1777493448000,-500.0,0.00015199,2]
[421358138,1777493448000,-500.0,0.00015199,2]
[421358141,1777493448000,-500.0,0.00015199,2]
[421358142,1777493448000,-500.0,0.00015199,2]
[421358145,1777493448000,-541.76549118,0.00015199,2]
[421358139,1777493448000,-500.0,0.00015199,2]
[421358143,1777493448000,-500.0,0.00015199,2]
[421358144,1777493448000,-500.0,0.00015199,2]
[421358140,1777493448000,-500.0,0.00015199,2]
[421358257,1777494638000,-204.84628363,0.00015,2]
[421358264,1777494638000,-500.0,0.00015098,2]
[421358263,1777494638000,-500.0,0.00015098,2]
[421358259,1777494638000,-408.99987152,0.00015098,2]
[421358260,1777494638000,-500.0,0.00015098,2]
[421358272,1777494638000,-454.23694961,0.00015098,2]
[421358258,1777494638000,-162.449673,0.00015068,2]
[421358256,1777494638000,-10119.94829232,0.00015,2]
[421358261,1777494638000,-500.0,0.00015098,2]
[421358262,1777494638000,-500.0,0.00015098,2]
[421358255,1777494638000,-212.85,0.00014022,2]
[421358253,1777494638000,-213.749435,0.00013699,2]
[421358252,1777494638000,-1000.0,0.00013699,2]
[421358251,1777494638000,-300.0,0.00013698,2]
[421358249,1777494638000,-160.0,0.0001334,2]
[421358250,1777494638000,-180.6566447,0.00013365,14]
[421358267,1777494638000,-530.69185656,0.00015098,2]
[421358254,1777494638000,-1000.0,0.00013699,2]
[421358273,1777494638000,-478.78534887,0.00015098,2]
[421358265,1777494638000,-500.0,0.00015098,2]
[421358270,1777494638000,-500.0,0.00015098,2]
[421358289,1777494638000,-8246.71867515,0.000155,2]
[421358288,1777494638000,-312.65455158,0.000154,2]
[421358285,1777494638000,-10119.94829232,0.000152,2]
[421358287,1777494638000,-10119.94829232,0.000153,2]
[421358286,1777494638000,-209.44970163,0.00015279,2]
[421358284,1777494638000,-3040.9972999,0.000151,2]
[421358281,1777494638000,-500.0,0.00015098,2]
[421358279,1777494638000,-500.0,0.00015098,2]
[421358283,1777494638000,-500.0,0.00015099,2]
[421358280,1777494638000,-500.0,0.00015098,2]
[421358278,1777494638000,-500.0,0.00015098,2]
[421358275,1777494638000,-452.52245348,0.00015098,2]
[421358277,1777494638000,-500.0,0.00015098,2]
[421358276,1777494638000,-500.0,0.00015098,2]
[421358274,1777494638000,-500.0,0.00015098,2]
[421358266,1777494638000,-500.0,0.00015098,2]
[421358268,1777494638000,-500.0,0.00015098,2]
[421358269,1777494638000,-454.62188576,0.00015098,2]
[421358282,1777494638000,-273.588,0.00015099,2]
[421358271,1777494638000,-500.0,0.00015098,2]
[421358316,1777494640000,-276.33958239,0.000155,2]
[421358331,1777494640000,-147.35200806,0.00015503,2]
[421358329,1777494640000,-596.89003478,0.000155,2]
[421358321,1777494640000,-1000.0,0.000155,2]
[421358313,1777494640000,-160.0,0.00013336,2]
[421358428,1777494643000,-644.0,0.000155,2]
[421358430,1777494643000,-197.45616995,0.00015503,2]
[421358723,1777494646000,-442.0,0.00014147,2]
[421358748,1777494646000,-3000.0,0.0001604,2]
[421358749,1777494646000,-3000.0,0.0001605,2]
[421358740,1777494646000,-3000.0,0.00016,2]
[421358741,1777494646000,-3000.0,0.0001601,2]
[421358738,1777494646000,-255.42,0.00015819,2]
[421358743,1777494646000,-3000.0,0.0001603,2]
[421358742,1777494646000,-3000.0,0.0001602,2]